fUST/lending_fUST_20240818
["ID","MTS","AMOUNT","RATE_DAILY","PERIOD"]
[335213847,1723984052355,-970.31054779,9.76e-05,2]
[335213849,1723984164110,-1662.44806719,8.793e-05,2]
[335213850,1723984164135,-779.97165007,8.883e-05,2]
[335213851,1723984164159,-300.0,8.947e-05,2]
[335213852,1723984164183,-300.0,8.947e-05,2]
[335213853,1723984164207,-24900.0,8.948e-05,2]
[335213854,1723984164227,-251.119506,9.429e-05,2]
[335213855,1723984164248,-196.79108262,9.429e-05,2]
[335213856,1723984164272,-420.0,9.842e-05,2]
[335213857,1723984164295,-264.0,9.842e-05,2]
[335213858,1723984164317,-2127.82180592,9.939e-05,2]
[335213859,1723984164339,-208.04413736,0.0001,2]
[335213860,1723984164359,-2674.41440902,0.0001,2]
[335213861,1723984164381,-20792.59733498,0.00010081,2]
[335213862,1723984164404,-587.0,0.00010826,2]
[335213863,1723984164427,-2000.0,0.00010959,2]
[335213864,1723984164448,-257.16,0.00010959,2]
[335213865,1723984164470,-214.3,0.00010959,2]
[335213866,1723984164495,-178.59,0.00010959,2]
[335213867,1723984164516,-634.53618461,0.00010959,2]
[335213894,1723984232324,-2129.11035201,9.524e-05,2]
[335213896,1723984232333,-258.41381539,0.00010959,2]
[335213897,1723984232343,-300.0,0.00011711,2]
[335213899,1723984232355,-2712.30651884,0.00011712,2]
[335213901,1723984232367,-1500.0,0.00011712,2]
[335213904,1723984232377,-157.02252022,0.00011712,2]
[335213906,1723984232387,-1487.5163457,0.00011712,2]
[335213908,1723984232397,-876.32509817,0.00011842,2]
[335213922,1723984238464,-7291.16871499,0.00011842,2]
[335213923,1723984238531,-6141.4267335,0.00011842,2]
[335213924,1723984238540,-44795.7332747,0.00011897,2]
[335213925,1723984238550,-396.18828438,0.000123,2]
[335213926,1723984238559,-7766.06142123,0.000125,2]
[335213927,1723984238571,-155.38544533,0.000125,2]
[335213928,1723984238580,-2142.26343469,0.00012629,2]
[335213931,1723984240646,-2712.30651884,0.00011409,2]
[335213932,1723984240656,-2142.17325985,0.00012629,2]
[335213933,1723984240665,-420.0,0.00012882,2]
[335213934,1723984240675,-728.56380751,0.00012898,2]
[335213935,1723984240684,-4019.26488415,0.000129,2]
[335213936,1723984240693,-1722.84598749,0.00012925,2]
[335213937,1723984240703,-810.24254559,0.00012934,2]
[335213938,1723984240713,-156.84074619,0.00012934,2]
[335213939,1723984240722,-160.42673212,0.00012934,2]
[335213940,1723984240732,-192.42208507,0.00012971,2]
[335213941,1723984240741,-249.98636196,0.00012985,2]
[335213942,1723984240751,-404.31033644,0.00012985,2]
[335213943,1723984240761,-225.78691648,0.00012985,2]
[335213944,1723984240770,-688.45853838,0.00012989,2]
[335213945,1723984240779,-493.25192424,0.00012989,2]
[335213946,1723984240788,-154.69833824,0.00012991,2]
[335213947,1723984240798,-416.29321836,0.00012991,2]
[335213948,1723984240808,-154.69833824,0.00012991,2]
[335213949,1723984240818,-154.69833824,0.00013,2]
[335213950,1723984240827,-5101.8287568,0.00013,2]
[335213951,1723984240837,-779.97165007,0.00013283,2]
[335213952,1723984240847,-196.79108262,0.00013283,2]
[335213953,1723984240857,-500.0,0.00013698,2]
[335213954,1723984240866,-452.61685611,0.00013698,2]
[335213955,1723984240877,-500.0,0.00013698,2]
[335213956,1723984240888,-500.0,0.00013698,2]
[335213957,1723984240898,-500.0,0.00013698,2]
[335213958,1723984240907,-230.44424253,0.00013698,2]
[335213959,1723984240918,-500.0,0.00013698,2]
[335213960,1723984240927,-500.0,0.00013698,2]
[335213961,1723984240937,-500.0,0.00013698,2]
[335213962,1723984240947,-500.0,0.00013698,2]
[335213963,1723984240956,-450.0,0.00013698,2]
[335213964,1723984240966,-5000.0,0.00013699,2]
[335213965,1723984240976,-2000.0,0.00013699,2]
[335213966,1723984240985,-2000.0,0.00013699,2]
[335213967,1723984240995,-5000.0,0.00013699,2]
[335213968,1723984241005,-337.402923,0.00013699,2]
[335213969,1723984241015,-1722.84598746,0.00013778,2]
[335213970,1723984241024,-20788.36911839,0.00013971,2]
[335213971,1723984241034,-20713.46482487,0.00014,4]
[335213972,1723984241044,-587.0,0.0001417,2]
[335213973,1723984241053,-193.799589,0.00014247,2]
[335213974,1723984241063,-204.895411,0.00014247,2]
[335213975,1723984241072,-1722.84598746,0.00014632,2]
[335213976,1723984241081,-49269.1446803,0.0001499,2]
[335213977,1723984241091,-953.29878775,0.00015,2]
[335213978,1723984241102,-1110.8112074,0.00015,2]
[335213979,1723984241111,-2000.0,0.00015068,2]
[335213980,1723984241122,-500.0,0.00015405,2]
[335213981,1723984241134,-486.31595418,0.00015405,2]
[335213982,1723984241278,-1722.84598746,0.00015485,2]
[335213983,1723984241290,-823.0,0.00015587,2]
[335213984,1723984241300,-334.42391633,0.00015707,7]
[335213985,1723984241310,-2000.0,0.000159,2]
[335213986,1723984241321,-3343.83425335,0.000159,2]
[335213987,1723984241330,-4019.26488413,0.00015979,2]
[335213988,1723984241340,-5000.0,0.00016,16]
[335213989,1723984241350,-1009.21986791,0.00016,2]
[335213990,1723984241359,-500.0,0.00016175,2]
[335213991,1723984241371,-500.0,0.00016175,2]
[335213992,1723984241381,-19506.47872464,0.00016318,2]
[335214036,1723984246292,-688.45853838,0.00012985,2]
[335214038,1723984246302,-29762.66595566,0.00016318,2]
[335214040,1723984246313,-48438.66773773,0.00016328,2]
[335214042,1723984246323,-191.9731999,0.00016337,2]
[335214044,1723984246333,-1722.84598746,0.00016338,2]
[335214046,1723984246343,-92978.99154693,0.00016428,2]
[335214157,1723984296627,166.4,5.479e-05,2]
[335214158,1723984342616,4988.54,8.5e-05,2]
[335214159,1723984361053,2111.27572321,8.5e-05,2]
[335214160,1723984400004,3612.98227201,8.5e-05,2]
[335214163,1723984483567,2111.14414603,8.5e-05,2]
[335214164,1723984487949,273.37336231,8.5e-05,2]
[335214165,1723984493593,263.34760791,8.5e-05,2]
[335214166,1723984500238,218.66051313,8.5e-05,2]
[335214167,1723984516329,283.24710701,8.5e-05,2]
[335214172,1723984584578,-1449.01858577,8.693e-05,2]
[335214173,1723984584600,-191.9731999,8.693e-05,2]
[335214174,1723984584623,-321.7852684,0.0001,2]
[335214175,1723984584649,-826.75,0.00010959,2]
[335214176,1723984584679,-165.34,0.00010959,2]
[335214177,1723984584703,-160.156749,0.00011976,2]
[335214178,1723984584727,-300.0,0.00012102,2]
[335214179,1723984584750,-300.0,0.00012102,2]
[335214180,1723984584773,-24900.0,0.00012103,2]
[335214181,1723984584796,-779.97165007,0.00012898,2]
[335214182,1723984584820,-196.79108262,0.00012934,2]
[335214183,1723984584843,-395.0,0.00013284,2]
[335214184,1723984584865,-420.0,0.00013312,2]
[335214185,1723984584889,-7986.93694526,0.00013588,2]
[335214186,1723984584911,-100000.0,0.00013596,2]
[335214187,1723984584933,-11814.69651898,0.00013596,2]
[335214188,1723984595204,166.4,5.479e-05,2]
[335214189,1723984646415,196.79108262,6.641e-05,2]
[335214190,1723984651069,4619.11395466,6.641e-05,2]
[335214193,1723984895660,166.4,5.479e-05,2]
[335214194,1723984921089,307.65945191,6.641e-05,2]
[335214195,1723984923889,1613.2972388,6.641e-05,2]
[335214196,1723984981094,281.75633097,8.05e-05,2]
[335214199,1723985196470,166.4,5.479e-05,2]
[335214200,1723985254152,-850.5788145,8.521e-05,2]
[335214201,1723985254174,-196.79108262,8.769e-05,2]
[335214202,1723985254200,-159.5559735,9.429e-05,2]
[335214203,1723985254222,-300.0,9.999e-05,2]
[335214204,1723985254244,-300.0,9.999e-05,2]
[335214205,1723985254266,-318.98951916,0.0001,2]
[335214207,1723985294962,342.07077544,6.641e-05,2]
[335214214,1723985353108,-300.0,9.865e-05,2]
[335214215,1723985353131,-24900.0,9.866e-05,2]
[335214216,1723985353153,-8654.68308025,0.0001,2]
[335214217,1723985353175,-229.87239205,0.0001,2]
[335214218,1723985353197,-240.49279008,0.0001,2]
[335214219,1723985353218,-1670.92226544,0.0001,2]
[335214220,1723985353240,-160.156748,0.00010507,2]
[335214221,1723985353264,-160.156748,0.00010542,2]
[335214222,1723985353286,-160.156748,0.00010576,2]
[335214223,1723985353309,-160.156748,0.0001061,2]
[335214224,1723985353332,-160.156748,0.00010644,2]
[335214225,1723985353355,-160.156748,0.00010679,2]
[335214226,1723985353380,-160.156748,0.00010713,2]
[335214227,1723985353403,-160.156748,0.00010747,2]
[335214228,1723985353425,-160.156748,0.00010781,2]
[335214259,1723985432409,-160.156748,0.00010815,2]
[335214261,1723985432422,-160.156748,0.0001085,2]
[335214262,1723985432432,-160.156748,0.00010884,2]
[335214263,1723985432441,-160.156748,0.00010918,2]
[335214264,1723985432451,-160.156748,0.00010952,2]
[335214265,1723985432461,-573.81,0.00010959,2]
[335214266,1723985432471,-603.98,0.00010959,2]
[335214267,1723985432480,-503.32,0.00010959,2]
[335214268,1723985432490,-419.43,0.00010959,2]
[335214269,1723985432499,-349.53,0.00010959,2]
[335214270,1723985432510,-291.27,0.00010959,2]
[335214271,1723985432524,-242.73,0.00010959,2]
[335214272,1723985432534,-160.156748,0.00010987,2]
[335214273,1723985432544,-160.156748,0.00011021,2]
[335214274,1723985432555,-160.156748,0.00011055,2]
[335214275,1723985432566,-779.97165007,0.00011409,2]
[335214276,1723985432576,-42407.2799269,0.00011409,2]
[335214277,1723985432586,-779.97165007,0.00011409,2]
[335214278,1723985432597,-9658.15828806,0.00011999,2]
[335214279,1723985432608,-7012.68235792,0.00011999,2]
[335214280,1723985432618,-300.0,0.00012119,2]
[335214281,1723985432628,-8843.52115837,0.0001212,2]
[335214282,1723985432638,-2127.39988805,0.00012163,2]
[335214283,1723985432647,-2142.17325985,0.00012163,2]
[335214284,1723985432666,-1500.0,0.00012551,2]
[335214285,1723985432679,-59033.9202439,0.00012879,2]
[335214286,1723985432690,-728.56380751,0.00012886,2]
[335214287,1723985432700,-188.49871468,0.00012886,2]
[335214288,1723985432710,-9881.07189993,0.00012889,2]
[335214289,1723985432720,-154.99369496,0.00012898,2]
[335214290,1723985432730,-155.00412937,0.00012898,2]
[335214291,1723985432741,-246.66928391,0.00012898,2]
[335214292,1723985432750,-226.77809033,0.00012898,2]
[335214293,1723985432760,-503.53585513,0.00012898,2]
[335214294,1723985432770,-154.79103211,0.00012898,2]
[335214295,1723985432780,-160.36374752,0.00012898,2]
[335214296,1723985432790,-181.28685074,0.00012898,2]
[335214297,1723985432799,-4460.76737747,0.000129,2]
[335214298,1723985432811,-320.00455182,0.00012934,2]
[335214299,1723985432821,-408.17497355,0.00012934,2]
[335214300,1723985432831,-174.75672236,0.00012934,2]
[335214301,1723985432841,-493.25192424,0.00012971,2]
[335214302,1723985432851,-154.79103211,0.00012971,2]
[335214303,1723985432862,-155.32504483,0.00012971,2]
[335214304,1723985432871,-301.02091035,0.00012971,2]
[335214305,1723985432880,-154.71377951,0.00012971,2]
[335214306,1723985432890,-156.84074619,0.00012985,2]
[335214307,1723985432901,-154.71377951,0.00012989,2]
[335214308,1723985432911,-154.9136217,0.00012989,2]
[335214309,1723985432921,-211.61884027,0.00013,2]
[335214310,1723985432931,-420.0,0.00013331,2]
[335214311,1723985432941,-59033.9202439,0.00013578,2]
[335214312,1723985432952,-500.0,0.00013698,2]
[335214313,1723985432963,-500.0,0.00013698,2]
[335214314,1723985432973,-500.0,0.00013698,2]
[335214315,1723985432983,-316.83179927,0.00013698,2]
[335214316,1723985432993,-500.0,0.00013698,2]
[335214317,1723985433002,-500.0,0.00013698,2]
[335214318,1723985433013,-234.25636775,0.00013698,2]
[335214319,1723985433023,-500.0,0.00013698,2]
[335214320,1723985433033,-500.0,0.00013698,2]
[335214321,1723985433043,-500.0,0.00013698,2]
[335214322,1723985433057,-500.0,0.00013698,2]
[335214323,1723985433068,-414.20616858,0.00013698,2]
[335214324,1723985433078,-500.0,0.00013698,2]
[335214325,1723985433088,-294.00704001,0.00013698,2]
[335214326,1723985433098,-500.0,0.00013698,2]
[335214327,1723985433108,-500.0,0.00013698,2]
[335214328,1723985433118,-610.0,0.00013698,2]
[335214329,1723985433128,-500.0,0.00013698,2]
[335214330,1723985433138,-3000.0,0.00013699,2]
[335214331,1723985433149,-625.58214,0.00013699,2]
[335214332,1723985433158,-500.0,0.00013699,2]
[335214333,1723985433364,-500.0,0.00013699,2]
[335214334,1723985433375,-500.0,0.00013699,2]
[335214335,1723985433384,-579.82940692,0.00013699,2]
[335214336,1723985433394,-500.0,0.00013699,2]
[335214337,1723985433403,-500.0,0.00013699,2]
[335214338,1723985433412,-500.0,0.00013699,2]
[335214339,1723985433421,-500.0,0.00013699,2]
[335214340,1723985433430,-500.0,0.00013699,2]
[335214341,1723985433444,-500.0,0.00013699,2]
[335214342,1723985433454,-500.0,0.00013699,2]
[335214343,1723985433464,-500.0,0.00013699,2]
[335214344,1723985433474,-500.0,0.00013699,2]
[335214345,1723985433484,-500.0,0.00013699,2]
[335214346,1723985433496,-500.0,0.00013699,2]
[335214347,1723985433505,-500.0,0.00013699,2]
[335214348,1723985433515,-500.0,0.00013699,2]
[335214349,1723985433528,-500.0,0.00013699,2]
[335214350,1723985433538,-447.64209198,0.00013699,2]
[335214351,1723985433548,-59033.9202439,0.00013741,2]
[335214352,1723985433560,-9881.07189992,0.00013751,2]
[335214353,1723985433571,-194.65064,0.00014247,2]
[335214354,1723985433581,-9881.07189992,0.00014614,2]
[335214355,1723985433591,-587.0,0.00014664,2]
[335214356,1723985433602,-59033.9202439,0.0001498,2]
[335214357,1723985433612,-953.29878775,0.00015,2]
[335214358,1723985433622,-1110.8112074,0.00015,2]
[335214359,1723985433632,-170.02363471,0.00015,2]
[335214360,1723985433643,-500.0,0.00015001,2]
[335214361,1723985433653,-4460.76737742,0.00015185,2]
[335214362,1723985433664,-9881.07189992,0.00015476,2]
[335214363,1723985433674,-59033.9202439,0.00015715,2]
[335214364,1723985433684,-596.7864113,0.00015945,2]
[335214365,1723985433694,-1000.0,0.00016,16]
[335214366,1723985433704,-154.71377951,0.0001611,2]
[335214367,1723985433714,-823.0,0.0001613,2]
[335214368,1723985433725,-5327.60651547,0.00016143,2]
[335214369,1723985433736,-59033.9202439,0.00016208,2]
[335214370,1723985433746,-75213.64093917,0.00016218,2]
[335214380,1723985438550,-154.71377951,0.00012989,2]
[335214381,1723985438567,-5853.98622049,0.00016218,2]
[335214382,1723985438578,-7820.37284034,0.00016218,2]
[335214383,1723985438588,-9881.07189992,0.00016338,2]
[335214384,1723985438600,-3652.56579218,0.000164,2]
[335214385,1723985438610,-27925.77711004,0.00016404,2]
[335214386,1723985438621,-500.0,0.00016438,2]
[335214387,1723985438630,-502.39336279,0.00016438,2]
[335214388,1723985438640,-500.0,0.00016438,2]
[335214389,1723985438649,-500.0,0.00016438,2]
[335214390,1723985438659,-512.04081404,0.00016438,2]
[335214391,1723985438669,-500.0,0.00016438,2]
[335214392,1723985438678,-506.70627482,0.00016438,2]
[335214393,1723985438688,-500.0,0.00016438,2]
[335214395,1723985438698,-500.0,0.00016438,2]
[335214397,1723985438707,-500.0,0.00016438,2]
[335214399,1723985438718,-500.0,0.00016438,2]
[335214400,1723985438728,-500.0,0.00016438,2]
[335214401,1723985438738,-500.0,0.00016438,2]
[335214402,1723985438748,-500.0,0.00016438,2]
[335214403,1723985438758,-500.0,0.00016438,2]
[335214404,1723985438767,-632.06211442,0.00016438,2]
[335214405,1723985438777,-500.0,0.00016438,2]
[335214406,1723985438786,-611.62,0.00016438,2]
[335214407,1723985438795,-500.0,0.00016438,2]
[335214408,1723985438807,-500.0,0.00016438,2]
[335214409,1723985438816,-500.0,0.00016438,2]
[335214410,1723985438826,-500.0,0.00016438,2]
[335214411,1723985438836,-648.23834614,0.00016438,2]
[335214412,1723985438846,-500.65763525,0.00016438,2]
[335214413,1723985438855,-500.0,0.00016438,2]
[335214414,1723985438866,-508.1681348,0.00016438,2]
[335214415,1723985438875,-502.63474682,0.00016438,2]
[335214416,1723985438885,-500.0,0.00016438,2]
[335214417,1723985438895,-500.0,0.00016438,2]
[335214418,1723985438906,-474.86221474,0.00016438,2]
[335214419,1723985438916,-500.0,0.00016438,2]
[335214420,1723985438926,-500.0,0.00016438,2]
[335214421,1723985438935,-500.0,0.00016438,2]
[335214422,1723985438944,-500.0,0.00016438,2]
[335214423,1723985438954,-500.0,0.00016438,2]
[335214424,1723985438963,-508.60930539,0.00016438,2]
[335214425,1723985438972,-527.08,0.00016438,2]
[335214426,1723985438982,-500.0,0.00016438,2]
[335214427,1723985438992,-509.93065754,0.00016438,2]
[335214428,1723985439001,-500.0,0.00016438,2]
[335214429,1723985439010,-500.0,0.00016438,2]
[335214430,1723985439020,-511.5341625,0.00016438,2]
[335214431,1723985439030,-505.45642932,0.00016438,2]
[335214432,1723985439039,-500.0,0.00016438,2]
[335214433,1723985439049,-500.0,0.00016438,2]
[335214434,1723985439060,-500.0,0.00016438,2]
[335214435,1723985439069,-505.61470572,0.00016438,2]
[335214436,1723985439079,-500.0,0.00016438,2]
[335214437,1723985439089,-500.0,0.00016438,2]
[335214438,1723985439098,-500.0,0.00016438,2]
[335214439,1723985439108,-568.6745778,0.00016438,2]
[335214440,1723985439117,-500.0,0.00016438,2]
[335214441,1723985439126,-500.0,0.00016438,2]
[335214442,1723985439135,-520.14077379,0.00016438,2]
[335214443,1723985439145,-500.96333795,0.00016438,2]
[335214444,1723985439154,-500.0,0.00016438,2]
[335214445,1723985439163,-500.0,0.00016438,2]
[335214446,1723985439173,-500.0,0.00016438,2]
[335214447,1723985439183,-500.0,0.00016438,2]
[335214448,1723985439193,-610.08853085,0.00016438,2]
[335214449,1723985439202,-502.59079864,0.00016438,2]
[335214450,1723985439212,-500.0,0.00016438,2]
[335214451,1723985439221,-524.9,0.00016438,2]
[335214452,1723985439231,-500.0,0.00016438,2]
[335214453,1723985439241,-500.0,0.00016438,2]
[335214454,1723985439251,-500.0,0.00016438,2]
[335214455,1723985439260,-508.3067394,0.00016438,2]
[335214456,1723985439270,-500.0,0.00016438,2]
[335214457,1723985439280,-500.0,0.00016438,2]
[335214458,1723985439290,-500.0,0.00016438,2]
[335214459,1723985439300,-500.0,0.00016438,2]
[335214460,1723985439312,-521.95790595,0.00016438,2]
[335214461,1723985439321,-500.0,0.00016438,2]
[335214462,1723985439331,-500.0,0.00016438,2]
[335214463,1723985439341,-500.0,0.00016438,2]
[335214464,1723985439351,-500.0,0.00016438,2]
[335214465,1723985439360,-500.0,0.00016438,2]
[335214466,1723985439369,-615.89160897,0.00016438,2]
[335214467,1723985439379,-500.0,0.00016438,2]
[335214468,1723985439389,-501.88739602,0.00016438,2]
[335214469,1723985439399,-500.0,0.00016438,2]
[335214470,1723985439409,-500.0,0.00016438,2]
[335214471,1723985439419,-500.0,0.00016438,2]
[335214472,1723985439428,-500.0,0.00016438,2]
[335214473,1723985439438,-500.0,0.00016438,2]
[335214474,1723985439448,-500.0,0.00016438,2]
[335214475,1723985439458,-500.0,0.00016438,2]
[335214476,1723985439467,-500.0,0.00016438,2]
[335214477,1723985439478,-500.0,0.00016438,2]
[335214478,1723985439488,-500.0,0.00016438,2]
[335214479,1723985439498,-500.0,0.00016438,2]
[335214480,1723985439508,-500.0,0.00016438,2]
[335214481,1723985439520,-500.0,0.00016438,2]
[335214482,1723985439530,-500.0,0.00016438,2]
[335214483,1723985439540,-500.0,0.00016438,2]
[335214484,1723985439550,-500.0,0.00016438,2]
[335214485,1723985439562,-503.86934896,0.00016438,2]
[335214486,1723985439572,-516.77,0.00016438,2]
[335214487,1723985439582,-500.0,0.00016438,2]
[335214488,1723985439593,-500.0,0.00016438,2]
[335214489,1723985439603,-500.0,0.00016438,2]
[335214490,1723985439613,-505.06143816,0.00016438,2]
[335214491,1723985439623,-500.0,0.00016438,2]
[335214492,1723985439633,-500.0,0.00016438,2]
[335214493,1723985439643,-500.0,0.00016438,2]
[335214494,1723985439652,-500.0,0.00016438,2]
[335214495,1723985439662,-500.0,0.00016438,2]
[335214496,1723985439671,-500.0,0.00016438,2]
[335214497,1723985439680,-500.0,0.00016438,2]
[335214498,1723985439690,-500.0,0.00016438,2]
[335214499,1723985439700,-501.47494704,0.00016438,2]
[335214500,1723985439710,-500.0,0.00016438,2]
[335214501,1723985439719,-500.0,0.00016438,2]
[335214502,1723985439729,-500.0,0.00016438,2]
[335214503,1723985439738,-500.0,0.00016438,2]
[335214504,1723985439748,-500.0,0.00016438,2]
[335214505,1723985439759,-500.0,0.00016438,2]
[335214506,1723985439769,-500.0,0.00016438,2]
[335214507,1723985439781,-510.04064096,0.00016438,2]
[335214508,1723985439792,-500.0,0.00016438,2]
[335214509,1723985439801,-550.38,0.00016438,2]
[335214510,1723985439811,-508.84744568,0.00016438,2]
[335214511,1723985439955,-500.0,0.00016438,2]
[335214512,1723985439966,-502.82990042,0.00016438,2]
[335214513,1723985439976,-505.68544623,0.00016438,2]
[335214514,1723985439985,-398.80764802,0.00016438,2]
[335214515,1723985439995,-500.0,0.00016438,2]
[335214516,1723985440005,-500.0,0.00016438,2]
[335214517,1723985440014,-500.0,0.00016438,2]
[335214518,1723985440023,-500.0,0.00016438,2]
[335214519,1723985440033,-185.56289874,0.00016438,2]
[335214520,1723985440042,-500.0,0.00016438,2]
[335214522,1723985440053,-703.9,0.00016438,2]
[335214523,1723985440062,-504.75,0.00016438,2]
[335214524,1723985440072,-503.19221035,0.00016438,2]
[335214525,1723985440082,-508.5380433,0.00016438,2]
[335214526,1723985440091,-500.0,0.00016438,2]
[335214527,1723985440100,-500.0,0.00016438,2]
[335214528,1723985440110,-500.0,0.00016438,2]
[335214529,1723985440120,-500.0,0.00016438,2]
[335214530,1723985440129,-500.0,0.00016438,2]
[335214531,1723985440139,-941.53,0.00016438,2]
[335214532,1723985440148,-914.79,0.00016438,2]
[335214533,1723985440158,-500.0,0.00016438,2]
[335214534,1723985440167,-500.0,0.00016438,2]
[335214536,1723985440176,-276.85208661,0.00016438,2]
[335214537,1723985440186,-500.0,0.00016438,2]
[335214538,1723985440195,-500.0,0.00016438,2]
[335214539,1723985440205,-500.0,0.00016438,2]
[335214540,1723985440214,-513.94036456,0.00016438,2]
[335214541,1723985440224,-500.0,0.00016438,2]
[335214542,1723985440233,-500.0,0.00016438,2]
[335214543,1723985440243,-500.0,0.00016438,2]
[335214544,1723985440252,-500.0,0.00016438,2]
[335214545,1723985440261,-500.0,0.00016438,2]
[335214546,1723985440271,-500.0,0.00016438,2]
[335214547,1723985440280,-500.0,0.00016438,2]
[335214548,1723985440289,-500.0,0.00016438,2]
[335214549,1723985440299,-500.0,0.00016438,2]
[335214550,1723985440309,-289.56560944,0.00016438,2]
[335214551,1723985440318,-500.0,0.00016438,2]
[335214552,1723985440328,-500.0,0.00016438,2]
[335214554,1723985440338,-500.0,0.00016438,2]
[335214555,1723985440348,-500.0,0.00016438,2]
[335214556,1723985440357,-605.19,0.00016438,2]
[335214557,1723985440366,-500.0,0.00016438,2]
[335214558,1723985440376,-500.0,0.00016438,2]
[335214559,1723985440385,-505.55103988,0.00016438,2]
[335214561,1723985440395,-469.84670545,0.00016438,2]
[335214563,1723985440405,-636.72,0.00016438,2]
[335214564,1723985440414,-500.0,0.00016438,2]
[335214566,1723985440424,-500.0,0.00016438,2]
[335214568,1723985440433,-506.33476054,0.00016438,2]
[335214570,1723985440443,-500.0,0.00016438,2]
[335214572,1723985440452,-500.0,0.00016438,2]
[335214573,1723985440462,-505.09928173,0.00016438,2]
[335214574,1723985440471,-500.0,0.00016438,2]
[335214575,1723985440481,-500.0,0.00016438,2]
[335214576,1723985440491,-513.21989605,0.00016438,2]
[335214577,1723985440502,-509.92772392,0.00016438,2]
[335214578,1723985440511,-500.0,0.00016438,2]
[335214580,1723985440523,-500.0,0.00016438,2]
[335214582,1723985440533,-500.0,0.00016438,2]
[335214584,1723985440544,-500.0,0.00016438,2]
[335214586,1723985440554,-500.0,0.00016438,2]
[335214588,1723985440564,-500.0,0.00016438,2]
[335214590,1723985440574,-500.0,0.00016438,2]
[335214592,1723985440583,-503.5388865,0.00016438,2]
[335214594,1723985440593,-500.0,0.00016438,2]
[335214596,1723985440602,-500.0,0.00016438,2]
[335214598,1723985440612,-505.68019105,0.00016438,2]
[335214600,1723985440622,-500.0,0.00016438,2]
[335214602,1723985440631,-802.04,0.00016438,2]
[335214604,1723985440640,-500.0,0.00016438,2]
[335214606,1723985440650,-500.0,0.00016438,2]
[335214608,1723985440659,-500.0,0.00016438,2]
[335214610,1723985440669,-500.0,0.00016438,2]
[335214612,1723985440680,-500.0,0.00016438,2]
[335214614,1723985440689,-500.0,0.00016438,2]
[335214616,1723985440699,-500.0,0.00016438,2]
[335214618,1723985440708,-500.0,0.00016438,2]
[335214620,1723985440718,-618.68,0.00016438,2]
[335214622,1723985440727,-500.0,0.00016438,2]
[335214624,1723985440736,-505.51210129,0.00016438,2]
[335214626,1723985440747,-500.0,0.00016438,2]
[335214628,1723985440757,-500.0,0.00016438,2]
[335214630,1723985440767,-500.0,0.00016438,2]
[335214632,1723985440776,-500.0,0.00016438,2]
[335214634,1723985440785,-500.0,0.00016438,2]
[335214636,1723985440795,-508.62149033,0.00016438,2]
[335214638,1723985440805,-504.66007728,0.00016438,2]
[335214640,1723985440814,-500.0,0.00016438,2]
[335214642,1723985440824,-500.0,0.00016438,2]
[335214644,1723985440835,-500.0,0.00016438,2]
[335214646,1723985440844,-500.0,0.00016438,2]
[335214648,1723985440854,-500.0,0.00016438,2]
[335214649,1723985440863,-527.0,0.00016438,2]
[335214650,1723985440872,-500.0,0.00016438,2]
[335214652,1723985440881,-500.0,0.00016438,2]
[335214653,1723985440891,-500.0,0.00016438,2]
[335214654,1723985440901,-666.38,0.00016438,2]
[335214655,1723985440910,-500.0,0.00016438,2]
[335214656,1723985440919,-448.51956165,0.00016438,2]
[335214657,1723985440928,-500.0,0.00016438,2]
[335214658,1723985440937,-500.0,0.00016438,2]